fUSD/lending_fUSD_20251214
["ID","MTS","AMOUNT","RATE_DAILY","PERIOD"]
[398493983,1765745440675,-1001.0,0.000168,2]
[398493984,1765745440684,-1027.5029768,0.000168,2]
[398493985,1765745440693,-1027.50297673,0.00016811,2]
[398493986,1765745440702,-168.0,0.00016812,2]
[398493987,1765745440711,-1027.50297673,0.00016822,2]
[398493988,1765745440721,-1027.50297673,0.00016833,2]
[398493989,1765745440730,-150.0,0.00016836,2]
[398493990,1765745440740,-500.0,0.00016836,2]
[398493991,1765745440749,-150.0,0.00016836,2]
[398493992,1765745440758,-933.0,0.00016836,2]
[398493993,1765745440767,-500.0,0.00016836,2]
[398493994,1765745440776,-500.0,0.00016836,2]
[398493995,1765745440786,-1027.50297673,0.00016844,2]
[398493996,1765745440796,-1027.50297673,0.00016856,2]
[398493997,1765745440805,-200.0,0.00016864,2]
[398493998,1765745440815,-1027.50297673,0.00016867,2]
[398493999,1765745440825,-849.47,0.0001687,2]
[398494000,1765745440835,-1027.50297673,0.00016878,2]
[398494001,1765745440846,-481.15230225,0.00016884,2]
[398494002,1765745440856,-1027.50297673,0.00016889,2]
[398494003,1765745440865,-1000.0,0.000169,2]
[398494004,1765745440875,-1027.50297673,0.000169,2]
[398494005,1765745440884,-1939.3489602,0.000169,2]
[398494006,1765745440895,-499.99,0.00016922,2]
[398494007,1765745440905,-9999.99,0.00016922,2]
[398494008,1765745440914,-13920.21,0.00016922,2]
[398494009,1765745440923,-5425.48,0.00016922,2]
[398494010,1765745440933,-9999.99,0.00016922,2]
[398494011,1765745440942,-510.77,0.00016922,5]
[398494012,1765745440951,-1711.82,0.00016922,2]
[398494013,1765745440959,-9999.99,0.00016922,2]
[398494014,1765745440969,-794.73,0.00016922,2]
[398494015,1765745440978,-1805.73,0.00016922,2]
[398494016,1765745440987,-1193.45,0.00016922,2]
[398494017,1765745440996,-2947.76,0.00016922,2]
[398494018,1765745441005,-8346.9,0.00016922,2]
[398494019,1765745441014,-331.11,0.00016922,2]
[398494020,1765745441023,-299.99,0.00016922,4]
[398494021,1765745441032,-4999.99,0.00016922,2]
[398494022,1765745441041,-530.19,0.00016968,2]
[398494023,1765745441050,-500.0,0.0001697,2]
[398494024,1765745441059,-500.0,0.0001697,2]
[398494025,1765745441068,-500.0,0.0001697,2]
[398494026,1765745441078,-500.00000017,0.0001697,2]
[398494027,1765745441086,-1000.0,0.0001697,2]
[398494028,1765745441096,-1000.0,0.0001697,2]
[398494029,1765745441105,-1000.0,0.0001697,2]
[398494030,1765745441114,-1000.0,0.0001697,2]
[398494031,1765745441123,-500.0,0.00016973,2]
[398494032,1765745441132,-500.0,0.00016973,2]
[398494033,1765745441141,-500.0,0.00016973,2]
[398494034,1765745441150,-500.0,0.00016973,2]
[398494035,1765745441159,-500.0,0.00016973,2]
[398494036,1765745441168,-500.0,0.00016973,2]
[398494037,1765745441177,-500.0,0.00016973,2]
[398494038,1765745441186,-504.18794098,0.00016973,2]
[398494039,1765745441195,-500.0,0.00016973,2]
[398494040,1765745441205,-500.0,0.00016973,2]
[398494041,1765745441214,-500.0,0.00016973,2]
[398494042,1765745441223,-500.0,0.00016973,2]
[398494043,1765745441232,-505.36759797,0.00016973,2]
[398494044,1765745441241,-500.0,0.00016973,2]
[398494045,1765745441250,-496.76934978,0.00016973,2]
[398494046,1765745441258,-615.22169004,0.00016973,2]
[398494047,1765745441268,-500.0,0.00016973,2]
[398494048,1765745441276,-500.0,0.00016973,2]
[398494049,1765745441285,-500.0,0.00016973,2]
[398494050,1765745441294,-500.0,0.00016973,2]
[398494051,1765745441303,-200.0,0.00016973,2]
[398494052,1765745441312,-150.0,0.00016973,2]
[398494053,1765745441321,-150.0,0.00016973,2]
[398494054,1765745441331,-933.0,0.00016973,2]
[398494055,1765745441340,-500.0,0.00016973,2]
[398494056,1765745441349,-328.10823443,0.00016973,2]
[398494057,1765745441359,-500.0,0.00016973,2]
[398494058,1765745441368,-150.0,0.00016973,2]
[398494059,1765745441378,-164.87838723,0.00016983,2]
[398494060,1765745441388,-264.60302406,0.00016986,2]
[398494061,1765745441397,-196.93257168,0.0001699,2]
[398494062,1765745441406,-196.93257168,0.0001699,2]
[398494063,1765745441416,-1015.75125605,0.00016999,5]
[398494064,1765745441430,-300.0,0.00016999,2]
[398494065,1765745441439,-510.0,0.00016999,2]
[398494066,1765745441448,-500.0,0.00016999,2]
[398494067,1765745441458,-500.0,0.00016999,2]
[398494068,1765745441470,-4281.0,0.00017,2]
[398494069,1765745441479,-208.227511,0.00017,2]
[398494070,1765745441489,-346210.41473484,0.00017,2]
[398494071,1765745441498,-2000.0,0.00017,2]
[398494072,1765745441509,-2000.0,0.00017,2]
[398494073,1765745441518,-2000.0,0.00017,2]
[398494074,1765745441527,-1552.13466609,0.00017,3]
[398494076,1765745441536,-1272.0,0.00017,2]
[398494077,1765745441545,-6341.64530654,0.00017,2]
[398494078,1765745441554,-4987698.40378184,0.00017,2]
[398494079,1765745441580,-151.0,0.00016788,2]
[398494080,1765745441589,-298.495,0.00017,2]
[398494081,1765745441599,-1872.04,0.00017,2]
[398494082,1765745441622,-5491.39967601,0.00017,2]
[398494083,1765745441640,-24844.03952961,0.00017,2]
[398494084,1765745441651,-1304.47278192,0.00017,2]
[398494085,1765745441662,-873.41328254,0.00017,2]
[398494090,1765745442900,-1120.48357835,0.00016586,2]
[398494091,1765745442909,-2771.2504411,0.00016788,2]
[398494092,1765745442955,-1016.61257202,0.00016788,2]
[398494093,1765745442967,-2733.13698688,0.00016788,2]
[398494094,1765745442977,-501144.62793569,0.00017,2]
[398494096,1765745443387,-529.68414465,0.00017,2]
[398494097,1765745443398,-31671.62469751,0.00017,2]
[398494098,1765745443410,-7173.84954919,0.00017,2]
[398494099,1765745443421,-2379.12870126,0.00017,2]
[398494105,1765745447342,-7857.54367261,0.00017,2]
[398494107,1765745449728,2339.83196316,0.00014,5]
[398494108,1765745449755,3185.16803684,0.00014,5]
[398494109,1765745449975,4475.0,0.000139,3]
[398494112,1765745480877,2339.84196316,0.000138,5]
[398494113,1765745480935,3185.15803684,0.000138,5]
[398494114,1765745481051,5101.0,0.000137,3]
[398494122,1765745511850,1713.85196316,0.000138,5]
[398494123,1765745511875,3811.14803684,0.000138,5]
[398494124,1765745512083,4475.0,0.000137,3]
[398494141,1765745542931,1713.86196316,0.000137,5]
[398494142,1765745542958,3811.13803684,0.000137,5]
[398494143,1765745543154,4475.0,0.000136,3]
[398494155,1765745574067,1713.87196316,0.000137,5]
[398494156,1765745574093,2622.12803684,0.000137,5]
[398494286,1765746114912,547.7,0.00015635,2]
[398494290,1765746276495,1600.0,0.00015632,2]
[398494292,1765746320757,150.0,0.00015288,2]
[398494293,1765746327809,264.60302406,0.00015288,2]
[398494294,1765746384304,200.0,0.00015415,2]
[398494302,1765746535425,203.41976555,0.00015671,2]
[398494329,1765746632147,-300.0,0.00015771,2]
[398494330,1765746632156,-301.36490275,0.00015771,2]
[398494331,1765746632167,-534.06656813,0.00015771,2]
[398494332,1765746632179,-364.56852912,0.00015771,2]
[398494333,1765746632189,-282.0,0.00015771,2]
[398494334,1765746632199,-250.0,0.00015771,2]
[398494335,1765746632209,-10767.57234228,0.00015772,2]
[398494336,1765746632218,-500.0,0.00015772,2]
[398494337,1765746632227,-309.60827456,0.00015772,2]
[398494338,1765746632236,-500.0,0.00015772,2]
[398494339,1765746632245,-508.36351035,0.00015772,2]
[398494340,1765746632254,-500.0,0.00015772,2]
[398494341,1765746632264,-500.0,0.00015772,2]
[398494342,1765746632273,-500.0,0.00015772,2]
[398494343,1765746632282,-500.0,0.00015772,2]
[398494344,1765746632291,-500.0,0.00015772,2]
[398494345,1765746632300,-500.0,0.00015772,2]
[398494346,1765746632308,-500.0,0.00015772,2]
[398494347,1765746632317,-420.18364134,0.00015772,2]
[398494348,1765746632326,-5120.20370235,0.00015773,2]
[398494349,1765746632347,-7852.65675157,0.00015773,2]
[398494350,1765746632357,-984.13374169,0.00015773,2]
[398494351,1765746632372,-395.53587766,0.00015773,2]
[398494430,1765746639531,-4219.49174464,0.00015773,2]
[398494431,1765746639554,-60239.72498209,0.00015773,2]
[398494432,1765746639568,-160.68,0.00015784,2]
[398494433,1765746639581,-500.0,0.00015872,2]
[398494434,1765746639595,-500.0,0.00015872,2]
[398494435,1765746639608,-154.06647958,0.00015872,2]
[398494436,1765746639623,-150.0,0.00015951,2]
[398494437,1765746639638,-6719.15404977,0.00015984,2]
[398494438,1765746639654,-500.0,0.00016074,2]
[398494439,1765746639669,-500.0,0.00016074,2]
[398494440,1765746639683,-500.0,0.00016074,2]
[398494441,1765746639697,-301.63702078,0.00016074,2]
[398494442,1765746639710,-200.0,0.00016074,2]
[398494443,1765746639724,-151.0,0.00016074,2]
[398494444,1765746639738,-151.0,0.00016074,2]
[398494445,1765746639752,-151.0,0.00016074,2]
[398494446,1765746639766,-151.0,0.00016074,2]
[398494447,1765746639779,-200.0,0.00016074,2]
[398494448,1765746639793,-151.0,0.00016074,2]
[398494449,1765746639807,-157.82333405,0.00016074,2]
[398494450,1765746639820,-200.0,0.00016074,2]
[398494451,1765746639834,-169.0242937,0.00016083,2]
[398494452,1765746639847,-500.0,0.00016083,2]
[398494453,1765746639861,-269.18505949,0.00016083,2]
[398494454,1765746639875,-999.99,0.00016084,2]
[398494455,1765746639890,-299.99,0.00016084,2]
[398494456,1765746639903,-13920.21,0.00016084,2]
[398494457,1765746639916,-499.99,0.00016084,2]
[398494458,1765746639930,-331.11,0.00016084,2]
[398494459,1765746639943,-9999.99,0.00016084,2]
[398494460,1765746639959,-1805.73,0.00016084,2]
[398494461,1765746639974,-18418.47,0.00016084,2]
[398494462,1765746639987,-9999.99,0.00016084,2]
[398494463,1765746640001,-8346.9,0.00016084,2]
[398494464,1765746640014,-150.99,0.00016084,2]
[398494465,1765746640027,-4999.99,0.00016084,2]
[398494467,1765746640040,-5425.48,0.00016084,2]
[398494469,1765746640053,-31653.55162494,0.00016084,2]
[398494472,1765746640355,-906.10337417,0.00016084,2]
[398494473,1765746640371,-30290.72500089,0.00016084,2]
[398494474,1765746640384,-1711.82,0.00016084,2]
[398494475,1765746640396,-12047.46,0.00016084,2]
[398494476,1765746640409,-9999.99,0.00016084,2]
[398494477,1765746640422,-6719.15404971,0.00016086,2]
[398494478,1765746640435,-952.33688886,0.00016088,2]
[398494479,1765746640448,-2947.76,0.00016116,2]
[398494480,1765746640461,-574.12855637,0.00016149,2]
[398494481,1765746640474,-1212.4769749,0.00016149,2]
[398494482,1765746640488,-164.30824554,0.00016149,2]
[398494483,1765746640501,-151.0,0.00016149,2]
[398494484,1765746640514,-151.0,0.00016149,2]
[398494485,1765746640527,-620.0,0.00016149,2]
[398494487,1765746640539,-362.62811295,0.00016149,2]
[398494488,1765746640552,-1000.0,0.00016149,2]
[398494489,1765746640564,-1000.0,0.00016149,2]
[398494490,1765746640577,-800.91950008,0.00016149,2]
[398494491,1765746640589,-622.24294831,0.00016149,2]
[398494492,1765746640602,-1111.0,0.00016149,2]
[398494493,1765746640614,-500.0,0.00016149,2]
[398494494,1765746640627,-500.0,0.00016149,2]
[398494495,1765746640639,-178.22870659,0.00016149,2]
[398494496,1765746640652,-415.05624456,0.00016149,2]
[398494497,1765746640664,-300.0,0.00016149,2]
[398494498,1765746640677,-1000.0,0.00016149,2]
[398494499,1765746640690,-1000.0,0.00016149,2]
[398494500,1765746640703,-1000.0,0.00016149,2]
[398494501,1765746640715,-1000.0,0.00016149,2]
[398494502,1765746640727,-1000.0,0.00016149,2]
[398494503,1765746640738,-1000.0,0.00016149,2]
[398494504,1765746640751,-1000.0,0.00016149,2]
[398494505,1765746640763,-1000.0,0.00016149,2]
[398494506,1765746640775,-1000.0,0.00016149,2]
[398494507,1765746640787,-690.37459015,0.00016149,2]
[398494508,1765746640800,-6719.15404971,0.00016188,2]
[398494509,1765746640812,-952.33688885,0.00016204,2]
[398494510,1765746640824,-1111.0,0.00016204,2]
[398494511,1765746640837,-6719.15404971,0.00016289,2]
[398494512,1765746640849,-952.33688885,0.0001632,2]
[398494513,1765746640861,-3192.7083,0.00016338,2]
[398494514,1765746640874,-5807.3017,0.00016338,2]
[398494515,1765746640888,-245.08,0.0001639,2]
[398494516,1765746640900,-6719.15404971,0.00016391,2]
[398494517,1765746640913,-152.0,0.00016405,2]
[398494518,1765746640925,-152.0,0.00016405,2]
[398494519,1765746640937,-152.0,0.00016405,2]
[398494520,1765746640949,-152.0,0.00016405,2]
[398494521,1765746640961,-152.0,0.00016405,2]
[398494522,1765746640972,-152.0,0.00016405,2]
[398494523,1765746640984,-152.0,0.00016405,2]
[398494524,1765746640996,-152.0,0.00016405,2]
[398494525,1765746641008,-152.0,0.00016405,2]
[398494526,1765746641020,-152.0,0.00016405,2]
[398494527,1765746641032,-242.15963541,0.00016405,2]
[398494528,1765746641044,-212.60063327,0.00016405,2]
[398494529,1765746641056,-153.0,0.00016405,2]
[398494530,1765746641067,-153.0,0.00016405,2]
[398494531,1765746641079,-153.0,0.00016405,2]
[398494532,1765746641092,-153.0,0.00016405,2]
[398494533,1765746641103,-152.0,0.00016405,2]
[398494534,1765746641115,-153.0,0.00016405,2]
[398494535,1765746641127,-152.0,0.00016405,2]
[398494536,1765746641139,-153.0,0.00016405,2]
[398494537,1765746641151,-152.0,0.00016405,2]
[398494538,1765746641163,-153.0,0.00016405,2]
[398494539,1765746641175,-152.0,0.00016405,2]
[398494540,1765746641187,-152.0,0.00016405,2]
[398494541,1765746641199,-152.0,0.00016405,2]
[398494543,1765746641210,-152.0,0.00016405,2]
[398494544,1765746641223,-152.0,0.00016405,2]
[398494545,1765746641235,-152.0,0.00016405,2]
[398494546,1765746641247,-152.0,0.00016405,2]
[398494547,1765746641259,-152.0,0.00016405,2]
[398494548,1765746641271,-250.869368,0.00016405,2]
[398494549,1765746641282,-168.0,0.00016422,2]
[398494550,1765746641294,-952.33688885,0.00016436,2]
[398494551,1765746641306,-614.5409012,0.00016438,2]
[398494552,1765746641318,-500.0,0.00016438,2]
[398494553,1765746641330,-500.0,0.00016438,2]
[398494554,1765746641342,-500.0,0.00016438,2]
[398494555,1765746641354,-500.0,0.00016438,2]
[398494556,1765746641366,-500.0,0.00016438,2]
[398494557,1765746641378,-500.0,0.00016438,2]
[398494558,1765746641390,-500.0,0.00016438,2]
[398494559,1765746641402,-563.76180228,0.00016438,2]
[398494560,1765746641414,-500.0,0.00016438,2]
[398494561,1765746641427,-500.0,0.00016438,2]
[398494562,1765746641439,-500.0,0.00016438,2]
[398494563,1765746641450,-500.0,0.00016438,2]
[398494564,1765746641462,-300.0,0.00016438,2]
[398494565,1765746641474,-500.0,0.00016438,2]
[398494566,1765746641487,-500.0,0.00016438,2]
[398494567,1765746641500,-500.0,0.00016438,2]
[398494568,1765746641511,-623.82452295,0.00016438,2]
[398494569,1765746641523,-500.0,0.00016438,2]
[398494570,1765746641535,-500.0,0.00016438,2]
[398494571,1765746641547,-500.0,0.00016438,2]
[398494572,1765746641559,-300.0,0.00016438,2]
[398494573,1765746641571,-500.0,0.00016438,2]
[398494574,1765746641583,-500.0,0.00016438,2]
[398494575,1765746641595,-500.0,0.00016438,2]
[398494576,1765746641607,-600.0,0.00016438,2]
[398494577,1765746641618,-500.0,0.00016438,2]
[398494578,1765746641629,-500.0,0.00016438,2]
[398494579,1765746641642,-500.0,0.00016438,2]
[398494580,1765746641653,-5638.0,0.00016445,2]
[398494581,1765746641665,-6719.15404971,0.00016493,2]
[398494582,1765746641677,-236.0,0.00016526,2]
[398494583,1765746641688,-952.33688885,0.00016552,2]
[398494584,1765746641700,-999.0,0.00016583,3]
[398494585,1765746641711,-6719.15404971,0.00016595,2]
[398494586,1765746641723,-1000.0,0.00016603,2]
[398494587,1765746641735,-679.80230705,0.0001666,2]
[398494588,1765746641747,-160.68,0.00016661,2]
[398494589,1765746641758,-952.33688885,0.00016668,2]
[398494590,1765746641770,-9168.59808233,0.00016688,2]
[398494591,1765746641782,-164.22,0.00016689,2]
[398494592,1765746641794,-450.0,0.00016693,2]
[398494593,1765746641805,-269.01574731,0.00016696,2]
[398494594,1765746641818,-6719.15404971,0.00016696,2]
[398494595,1765746641830,-270.53619862,0.00016697,2]
[398494596,1765746641842,-150.0,0.00016699,2]
[398494597,1765746641853,-150.0,0.00016699,2]
[398494598,1765746641865,-200.0,0.00016699,2]
[398494599,1765746641877,-200.0,0.00016699,2]
[398494600,1765746641893,-150.0,0.00016699,2]
[398494601,1765746641905,-150.0,0.00016699,2]
[398494602,1765746641918,-500.0,0.00016699,2]
[398494603,1765746641931,-150.0,0.00016699,2]
[398494604,1765746641944,-500.0,0.00016699,2]
[398494605,1765746641956,-1772.0,0.00016699,2]
[398494606,1765746641969,-500.0,0.00016699,2]
[398494607,1765746641981,-500.0,0.00016699,2]
[398494608,1765746641993,-500.0,0.00016699,2]
[398494609,1765746642005,-150.0,0.00016699,2]
[398494610,1765746642016,-500.0,0.00016699,2]
[398494611,1765746642028,-500.0,0.00016699,2]
[398494612,1765746642039,-150.0,0.00016699,2]
[398494613,1765746642051,-150.0,0.00016699,2]
[398494614,1765746642063,-150.0,0.00016699,2]
[398494615,1765746642074,-150.0,0.00016699,2]
[398494616,1765746642086,-150.0,0.00016699,2]
[398494617,1765746642098,-150.0,0.00016699,2]
[398494618,1765746642109,-150.0,0.00016699,2]
[398494619,1765746642121,-150.0,0.00016699,2]
[398494620,1765746642133,-500.0,0.00016699,2]
[398494621,1765746642144,-150.0,0.00016699,2]
[398494622,1765746642156,-500.0,0.00016699,2]
[398494623,1765746642167,-168.0,0.00016703,2]
[398494624,1765746642180,-9168.59808228,0.00016712,2]
[398494625,1765746642193,-9168.59808228,0.00016735,2]
[398494626,1765746642205,-4797.0,0.00016743,2]
[398494627,1765746642217,-2426.0,0.00016743,2]
[398494628,1765746642230,-572.018,0.00016743,2]
[398494629,1765746642242,-6521.0,0.00016743,2]
[398494630,1765746642255,-9168.59808228,0.00016759,2]
[398494631,1765746642267,-500.0,0.00016773,2]
[398494632,1765746642278,-500.0,0.00016773,2]
[398494633,1765746642289,-500.0,0.00016773,2]
[398494634,1765746642301,-500.0,0.00016773,2]
[398494635,1765746642313,-500.0,0.00016773,2]
[398494636,1765746642325,-500.0,0.00016773,2]
[398494637,1765746642337,-500.0,0.00016773,2]
[398494638,1765746642350,-517.81601254,0.00016773,2]
[398494639,1765746642363,-500.0,0.00016773,2]
[398494640,1765746642374,-500.0,0.00016773,2]
[398494641,1765746642389,-500.0,0.00016773,2]
[398494642,1765746642402,-500.0,0.00016773,2]
[398494643,1765746642416,-500.25167315,0.00016773,2]
[398494644,1765746642428,-500.0,0.00016773,2]
[398494645,1765746642440,-504.48723709,0.00016773,2]
[398494646,1765746642451,-500.0,0.00016773,2]
[398494647,1765746642465,-152.21927846,0.00016773,2]
[398494648,1765746642479,-167.51806982,0.00016773,2]
[398494649,1765746642492,-500.0,0.00016773,2]
[398494650,1765746642504,-9168.59808228,0.00016782,2]
[398494651,1765746642515,-952.33688885,0.00016784,2]
[398494652,1765746642526,-150.0,0.00016788,2]
[398494653,1765746642538,-150.0,0.00016788,2]
[398494654,1765746642550,-611.0,0.00016788,2]
[398494655,1765746642561,-3451.0,0.00016788,2]
[398494656,1765746642573,-1324.0,0.00016788,2]
[398494657,1765746642584,-1607.0,0.00016788,2]
[398494658,1765746642596,-589.0,0.00016788,2]
[398494659,1765746642608,-1261.0,0.00016788,2]
[398494660,1765746642619,-6719.15404971,0.00016798,2]
[398494661,1765746642631,-1007.11863997,0.000168,2]
[398494662,1765746642643,-9168.59808228,0.00016806,2]
[398494663,1765746642655,-328.5,0.00016819,2]
[398494664,1765746642667,-9168.59808228,0.00016829,2]
[398494665,1765746642678,-150.0,0.00016836,2]
[398494666,1765746642691,-150.0,0.00016836,2]
[398494667,1765746642702,-200.0,0.00016836,2]
[398494668,1765746642714,-200.0,0.00016836,2]
[398494669,1765746642726,-500.0,0.00016836,2]
[398494670,1765746642738,-200.0,0.00016836,2]
[398494671,1765746642750,-500.0,0.00016836,2]
[398494672,1765746642761,-1772.0,0.00016836,2]
[398494673,1765746642772,-500.0,0.00016836,2]
[398494674,1765746642784,-644.0,0.00016836,2]
[398494675,1765746642795,-500.0,0.00016836,2]
[398494676,1765746642807,-150.0,0.00016836,2]
[398494677,1765746642819,-500.0,0.00016836,2]
[398494678,1765746642831,-500.0,0.00016836,2]
[398494679,1765746642843,-200.0,0.00016836,2]
[398494680,1765746642855,-150.0,0.00016836,2]
[398494681,1765746642867,-150.0,0.00016836,2]
[398494682,1765746642881,-150.0,0.00016836,2]
[398494683,1765746642899,-500.0,0.00016836,2]
[398494684,1765746642910,-500.0,0.00016836,2]
[398494685,1765746642921,-632.34,0.00016836,2]
[398494686,1765746642934,-9168.59808228,0.00016853,2]
[398494687,1765746642945,-1560.98,0.00016856,2]
[398494688,1765746642957,-200.0,0.00016864,2]
[398494689,1765746642969,-206.34855624,0.00016872,2]
[398494690,1765746642981,-9168.59808228,0.00016876,2]
[398494691,1765746642994,-481.15230225,0.00016891,2]
[398494692,1765746643005,-168.0,0.00016898,2]
[398494693,1765746643019,-241.91928725,0.000169,2]
[398494694,1765746643030,-10000.0,0.000169,2]
[398494695,1765746643042,-1000.0,0.000169,2]
[398494697,1765746643055,-6719.15404971,0.000169,2]
[398494698,1765746643066,-349.45913833,0.000169,2]
[398494699,1765746643078,-9168.59808228,0.000169,2]
[398494700,1765746643089,-952.33688885,0.000169,2]
[398494701,1765746643101,-2440.14658957,0.000169,2]
[398494702,1765746643112,-1485.06056151,0.000169,2]
[398494703,1765746643124,-514.59451364,0.000169,2]
[398494704,1765746643136,-168.0,0.00016927,2]
[398494705,1765746643148,-450.0,0.00016967,2]
[398494706,1765746643160,-500.0,0.0001697,2]
[398494707,1765746643172,-500.0,0.0001697,2]
[398494708,1765746643184,-500.0,0.0001697,2]
[398494709,1765746643196,-500.00000017,0.0001697,2]
[398494710,1765746643209,-1000.0,0.0001697,2]
[398494711,1765746643220,-1000.0,0.0001697,2]
[398494712,1765746643232,-1000.0,0.0001697,2]
[398494713,1765746643244,-1000.0,0.0001697,2]
[398494720,1765746644389,-500.0,0.00016973,2]
[398494721,1765746644409,-500.0,0.00016973,2]
[398494723,1765746644446,-500.0,0.00016973,2]
[398494724,1765746644480,-500.0,0.00016973,2]
[398494725,1765746644505,-500.0,0.00016973,2]
[398494726,1765746644524,-503.84405186,0.00016973,2]
[398494727,1765746644533,-500.0,0.00016973,2]
[398494729,1765746644543,-500.0,0.00016973,2]
[398494730,1765746644551,-500.0,0.00016973,2]
[398494731,1765746644560,-500.0,0.00016973,2]
[398494732,1765746644570,-500.0,0.00016973,2]
[398494733,1765746644579,-500.0,0.00016973,2]
[398494734,1765746644589,-500.0,0.00016973,2]
[398494735,1765746644598,-500.0,0.00016973,2]
[398494736,1765746644607,-496.76934978,0.00016973,2]
[398494737,1765746644616,-500.0,0.00016973,2]
[398494738,1765746644626,-500.0,0.00016973,2]
[398494739,1765746644636,-500.0,0.00016973,2]
[398494740,1765746644645,-500.0,0.00016973,2]
[398494741,1765746644655,-505.36759797,0.00016973,2]
[398494742,1765746644664,-500.0,0.00016973,2]
[398494743,1765746644674,-500.0,0.00016973,2]
[398494744,1765746644683,-504.18794098,0.00016973,2]
[398494745,1765746644693,-500.0,0.00016973,2]
[398494746,1765746644702,-500.0,0.00016973,2]
[398494747,1765746644712,-487.26788281,0.00016973,2]
[398494748,1765746644721,-500.0,0.00016973,2]
[398494749,1765746644730,-500.0,0.00016973,2]
[398494750,1765746644739,-500.0,0.00016973,2]
[398494751,1765746644748,-615.22169004,0.00016973,2]
[398494752,1765746644757,-500.0,0.00016973,2]
[398494753,1765746644771,-150.0,0.00016973,2]
[398494754,1765746644780,-150.0,0.00016973,2]
[398494755,1765746644789,-450.0,0.00016973,2]
[398494756,1765746644799,-500.0,0.00016973,2]
[398494757,1765746644808,-1772.0,0.00016973,2]
[398494758,1765746644818,-500.0,0.00016973,2]
[398494759,1765746644827,-500.0,0.00016973,2]
[398494760,1765746644836,-150.0,0.00016973,2]
[398494761,1765746644845,-500.0,0.00016973,2]
[398494762,1765746644854,-193.24107785,0.00016973,2]
[398494763,1765746644863,-200.0,0.00016973,2]
[398494764,1765746644873,-150.0,0.00016973,2]
[398494765,1765746644885,-150.0,0.00016973,2]
[398494766,1765746644894,-500.0,0.00016973,2]
[398494767,1765746644903,-500.0,0.00016973,2]
[398494768,1765746644913,-500.0,0.00016973,2]
[398494769,1765746644923,-150.0,0.00016973,2]
[398494770,1765746644937,-164.87838723,0.00016983,2]
[398494772,1765746644947,-260.13978827,0.00016986,2]
[398494773,1765746644956,-196.93257168,0.0001699,2]
[398494774,1765746644966,-196.93257168,0.0001699,2]
[398494775,1765746644975,-164.22,0.0001699,2]
[398494776,1765746644984,-579.99190904,0.00016999,2]
[398494778,1765746644994,-500.0,0.00016999,2]
[398494779,1765746645003,-1108.75046791,0.00016999,5]
[398494781,1765746645013,-1108.75046792,0.00016999,5]
[398494782,1765746645022,-500.0,0.00016999,2]
[398494783,1765746645031,-500.0,0.00016999,2]
[398494784,1765746645040,-500.0,0.00016999,2]
[398494785,1765746645049,-300.0,0.00016999,2]
[398494786,1765746645058,-187.40476,0.00017,2]
[398494787,1765746645067,-5524501.84677235,0.00017,2]
[398494792,1765746646173,-310.49807701,0.000159,2]
[398494793,1765746646183,-1397.78669648,0.00016634,2]
[398494794,1765746646193,-7560.65556168,0.00017,2]
[398494796,1765746646340,-22771.10767234,0.00017,2]
[398494826,1765746655634,2117.8618,0.00015673,2]